[Event "Titled Tuesday Blitz March 14 Early 2023"]
[White "Le, Tuan Minh"]
[Black "Madaminov, Mukhiddin"]
[WhiteFideId "12401153"]
[BlackFideId "14210703"]
[WhiteElo "2558"]
[BlackElo "2511"]
[Result "0-1"]
[Round "03"]
[TimeControl "180+2"]
[Date "2023.03.14"]
[WhiteClock "0:00:02"]
[BlackClock "0:00:03"]

1. d4 {[%clk 0:03:00]}  Nf6 {[%clk 0:02:59]} 2. Nf3 {[%clk 0:03:00]}  g6 {[%clk 0:02:59]} 3. Bg5 {[%clk 0:03:00]}  Bg7 {[%clk 0:02:59]} 4. Nbd2 {[%clk 0:03:01]}  c5 {[%clk 0:02:58]} 5. Bxf6 {[%clk 0:03:00]}  Bxf6 {[%clk 0:02:55]} 6. Ne4 {[%clk 0:03:01]}  Bxd4 {[%clk 0:02:50]} 7. Nxd4 {[%clk 0:03:00]}  cxd4 {[%clk 0:02:51]} 8. Qxd4 {[%clk 0:03:00]}  O-O {[%clk 0:02:51]} 9. O-O-O {[%clk 0:03:01]}  Nc6 {[%clk 0:02:50]} 10. Qd2 {[%clk 0:03:01]}  Qa5 {[%clk 0:02:42]} 11. Qh6 {[%clk 0:01:53]}  Qe5 {[%clk 0:02:22]} 12. Ng5 {[%clk 0:01:44]}  Qg7 {[%clk 0:02:22]} 13. Qh4 {[%clk 0:01:44]}  h6 {[%clk 0:02:21]} 14. Nf3 {[%clk 0:01:43]}  d6 {[%clk 0:02:19]} 15. e3 {[%clk 0:01:43]}  Be6 {[%clk 0:02:14]} 16. Bc4 {[%clk 0:01:32]}  Bxc4 {[%clk 0:01:57]} 17. Qxc4 {[%clk 0:01:33]}  Rfc8 {[%clk 0:01:58]} 18. Qe4 {[%clk 0:01:31]}  Qf6 {[%clk 0:01:55]} 19. h4 {[%clk 0:01:30]}  Qe6 {[%clk 0:01:55]} 20. Qxe6 {[%clk 0:01:22]}  fxe6 {[%clk 0:01:56]} 21. Kb1 {[%clk 0:01:13]}  Kf7 {[%clk 0:01:54]} 22. Rh3 {[%clk 0:01:12]}  b5 {[%clk 0:01:18]} 23. Rg3 {[%clk 0:01:11]}  a6 {[%clk 0:01:06]} 24. Ne1 {[%clk 0:01:03]}  Ne5 {[%clk 0:01:04]} 25. b3 {[%clk 0:01:01]}  Rc3 {[%clk 0:01:00]} 26. Kb2 {[%clk 0:00:56]}  Rac8 {[%clk 0:00:58]} 27. f4 {[%clk 0:00:53]}  Nd7 {[%clk 0:00:56]} 28. Rd3 {[%clk 0:00:35]}  R3c7 {[%clk 0:00:52]} 29. e4 {[%clk 0:00:33]}  Nf6 {[%clk 0:00:49]} 30. Rge3 {[%clk 0:00:30]}  Rc5 {[%clk 0:00:44]} 31. g3 {[%clk 0:00:29]}  a5 {[%clk 0:00:43]} 32. Re2 {[%clk 0:00:28]}  e5 {[%clk 0:00:41]} 33. Nf3 {[%clk 0:00:27]}  Nd7 {[%clk 0:00:32]} 34. Rf2 {[%clk 0:00:24]}  Kg7 {[%clk 0:00:24]} 35. Rdd2 {[%clk 0:00:16]}  b4 {[%clk 0:00:24]} 36. fxe5 {[%clk 0:00:16]}  Nxe5 {[%clk 0:00:22]} 37. Nd4 {[%clk 0:00:16]}  Kh7 {[%clk 0:00:22]} 38. g4 {[%clk 0:00:15]}  a4 {[%clk 0:00:19]} 39. g5 {[%clk 0:00:14]}  a3+ {[%clk 0:00:18]} 40. Kc1 {[%clk 0:00:13]}  Rc3 {[%clk 0:00:19]} 41. Kd1 {[%clk 0:00:13]}  Rh3 {[%clk 0:00:18]} 42. Rh2 {[%clk 0:00:12]}  Rg3 {[%clk 0:00:17]} 43. Rdg2 {[%clk 0:00:12]}  Rcc3 {[%clk 0:00:16]} 44. gxh6 {[%clk 0:00:11]}  Kxh6 {[%clk 0:00:14]} 45. Ne6 {[%clk 0:00:12]}  Rce3 {[%clk 0:00:11]} 46. Ng5 {[%clk 0:00:10]}  Kh5 {[%clk 0:00:10]} 47. Kd2 {[%clk 0:00:08]}  Rc3 {[%clk 0:00:02]} 48. Kd1 {[%clk 0:00:05]}  Rxg2 {[%clk 0:00:01]} 49. Rxg2 {[%clk 0:00:06]}  Kxh4 {[%clk 0:00:02]} 50. Ne6 {[%clk 0:00:06]}  Rg3 {[%clk 0:00:02]} 51. Rh2+ {[%clk 0:00:07]}  Kg4 {[%clk 0:00:03]} 52. Nd4 {[%clk 0:00:03]}  Re3 {[%clk 0:00:02]} 53. Rg2+ {[%clk 0:00:02]}  Kf4 {[%clk 0:00:03]} 54. Rf2+ {[%clk 0:00:01]}  Kxe4 {[%clk 0:00:03]} 55. Nb5 {[%clk 0:00:01]}  Nf3 {[%clk 0:00:03]} 56. Rf1 {[%clk 0:00:02]}  g5 {[%clk 0:00:03]} 0-1


[Site "https://www.chess.com"]

[Event "Titled Tuesday Blitz March 14 Early 2023"]
[White "Shimanov, Aleksandr"]
[Black "Albornoz Cabrera, Carlos Daniel"]
[WhiteFideId "4198603"]
[BlackFideId "3518736"]
[WhiteElo "2631"]
[BlackElo "2501"]
[Result "1-0"]
[Round "03"]
[TimeControl "180+2"]
[Date "2023.03.14"]
[WhiteClock "0:00:20"]
[BlackClock "0:00:04"]

1. e4 {[%clk 0:03:00]}  c5 {[%clk 0:02:59]} 2. d4 {[%clk 0:03:00]}  cxd4 {[%clk 0:02:59]} 3. Qxd4 {[%clk 0:03:01]}  Nc6 {[%clk 0:02:59]} 4. Qd3 {[%clk 0:02:59]}  g6 {[%clk 0:02:57]} 5. Nc3 {[%clk 0:02:57]}  Bg7 {[%clk 0:02:57]} 6. Nf3 {[%clk 0:02:58]}  d6 {[%clk 0:02:56]} 7. Be2 {[%clk 0:02:57]}  Nf6 {[%clk 0:02:56]} 8. O-O {[%clk 0:02:57]}  O-O {[%clk 0:02:56]} 9. Nd5 {[%clk 0:02:57]}  Be6 {[%clk 0:02:53]} 10. c3 {[%clk 0:02:56]}  Rc8 {[%clk 0:02:40]} 11. Bg5 {[%clk 0:02:53]}  h6 {[%clk 0:02:40]} 12. Bxf6 {[%clk 0:02:32]}  exf6 {[%clk 0:02:41]} 13. Rfd1 {[%clk 0:02:32]}  f5 {[%clk 0:02:38]} 14. exf5 {[%clk 0:02:32]}  Bxf5 {[%clk 0:02:38]} 15. Qd2 {[%clk 0:02:32]}  Be4 {[%clk 0:02:32]} 16. Ne3 {[%clk 0:02:18]}  Ne5 {[%clk 0:02:08]} 17. Qxd6 {[%clk 0:02:13]}  Nxf3+ {[%clk 0:01:55]} 18. Bxf3 {[%clk 0:02:12]}  Bxf3 {[%clk 0:01:56]} 19. Qxd8 {[%clk 0:02:10]}  Rfxd8 {[%clk 0:01:57]} 20. gxf3 {[%clk 0:02:10]}  Be5 {[%clk 0:01:50]} 21. h3 {[%clk 0:02:06]}  Kg7 {[%clk 0:01:50]} 22. Kf1 {[%clk 0:02:05]}  b5 {[%clk 0:01:45]} 23. a4 {[%clk 0:01:46]}  Rxd1+ {[%clk 0:01:44]} 24. Nxd1 {[%clk 0:01:46]}  a6 {[%clk 0:01:07]} 25. Ke2 {[%clk 0:01:31]}  Bf4 {[%clk 0:00:56]} 26. axb5 {[%clk 0:01:16]}  axb5 {[%clk 0:00:56]} 27. Ra7 {[%clk 0:01:17]}  Rc5 {[%clk 0:00:37]} 28. Rb7 {[%clk 0:01:15]}  Rh5 {[%clk 0:00:28]} 29. b4 {[%clk 0:01:10]}  Re5+ {[%clk 0:00:20]} 30. Ne3 {[%clk 0:01:08]}  Rh5 {[%clk 0:00:18]} 31. Ng2 {[%clk 0:01:01]}  Re5+ {[%clk 0:00:17]} 32. Kd3 {[%clk 0:00:59]}  Bc1 {[%clk 0:00:17]} 33. Rc7 {[%clk 0:00:54]}  Rd5+ {[%clk 0:00:17]} 34. Kc2 {[%clk 0:00:52]}  Bg5 {[%clk 0:00:14]} 35. f4 {[%clk 0:00:46]}  Bf6 {[%clk 0:00:13]} 36. Rc5 {[%clk 0:00:46]}  Rxc5 {[%clk 0:00:10]} 37. bxc5 {[%clk 0:00:47]}  Be7 {[%clk 0:00:10]} 38. c6 {[%clk 0:00:45]}  Bd6 {[%clk 0:00:11]} 39. Ne3 {[%clk 0:00:45]}  Kf8 {[%clk 0:00:11]} 40. Nd5 {[%clk 0:00:44]}  Ke8 {[%clk 0:00:11]} 41. c4 {[%clk 0:00:44]}  bxc4 {[%clk 0:00:10]} 42. Kc3 {[%clk 0:00:45]}  Kd8 {[%clk 0:00:10]} 43. Kxc4 {[%clk 0:00:45]}  f5 {[%clk 0:00:10]} 44. f3 {[%clk 0:00:42]}  Kc8 {[%clk 0:00:07]} 45. Kb5 {[%clk 0:00:40]}  g5 {[%clk 0:00:06]} 46. fxg5 {[%clk 0:00:40]}  hxg5 {[%clk 0:00:07]} 47. Ne3 {[%clk 0:00:39]}  f4 {[%clk 0:00:06]} 48. Nd5 {[%clk 0:00:39]}  Be5 {[%clk 0:00:05]} 49. Kc4 {[%clk 0:00:39]}  Bd6 {[%clk 0:00:02]} 50. Kd4 {[%clk 0:00:39]}  Kd8 {[%clk 0:00:02]} 51. Ke4 {[%clk 0:00:39]}  g4 {[%clk 0:00:02]} 52. hxg4 {[%clk 0:00:21]}  Ke8 {[%clk 0:00:03]} 53. Kf5 {[%clk 0:00:21]}  Kf7 {[%clk 0:00:04]} 54. c7 {[%clk 0:00:20]} 1-0


[Site "https://www.chess.com"]

[Event "Titled Tuesday Blitz March 14 Early 2023"]
[White "Real_OceanStorm"]
[Black "Matlakov, Maxim"]
[BlackFideId "4168003"]
[WhiteElo "2809"]
[BlackElo "2666"]
[Result "0-1"]
[Round "03"]
[TimeControl "180+2"]
[Date "2023.03.14"]
[WhiteClock "0:00:10"]
[BlackClock "0:01:08"]

1. e4 {[%clk 0:03:00]}  e5 {[%clk 0:02:57]} 2. f4 {[%clk 0:02:59]}  exf4 {[%clk 0:02:49]} 3. Nf3 {[%clk 0:02:59]}  Nf6 {[%clk 0:02:47]} 4. e5 {[%clk 0:02:58]}  Nh5 {[%clk 0:02:47]} 5. Be2 {[%clk 0:02:57]}  d6 {[%clk 0:02:41]} 6. d4 {[%clk 0:02:56]}  g6 {[%clk 0:02:38]} 7. O-O {[%clk 0:02:52]}  Bg7 {[%clk 0:02:38]} 8. exd6 {[%clk 0:02:52]}  Qxd6 {[%clk 0:02:32]} 9. b3 {[%clk 0:02:52]}  Nc6 {[%clk 0:02:26]} 10. Re1 {[%clk 0:01:55]}  Be6 {[%clk 0:02:15]} 11. Ba3 {[%clk 0:01:50]}  Bxd4+ {[%clk 0:02:12]} 12. Nxd4 {[%clk 0:01:41]}  Qxd4+ {[%clk 0:02:12]} 13. Qxd4 {[%clk 0:01:42]}  Nxd4 {[%clk 0:02:13]} 14. Bd1 {[%clk 0:01:41]}  O-O-O {[%clk 0:02:09]} 15. Be7 {[%clk 0:01:39]}  Rd7 {[%clk 0:02:07]} 16. Ba3 {[%clk 0:01:39]}  Bf5 {[%clk 0:01:59]} 17. Bb2 {[%clk 0:01:38]}  Rhd8 {[%clk 0:01:59]} 18. c4 {[%clk 0:01:38]}  f3 {[%clk 0:01:44]} 19. Na3 {[%clk 0:01:16]}  Nf4 {[%clk 0:01:26]} 20. Bxd4 {[%clk 0:00:49]}  Nxg2 {[%clk 0:01:24]} 21. Bf6 {[%clk 0:00:48]}  Nxe1 {[%clk 0:01:19]} 22. Bxd8 {[%clk 0:00:47]}  Kxd8 {[%clk 0:01:19]} 23. Kf2 {[%clk 0:00:41]}  Re7 {[%clk 0:01:16]} 24. Bxf3 {[%clk 0:00:37]}  Nxf3 {[%clk 0:01:14]} 25. Kxf3 {[%clk 0:00:38]}  c6 {[%clk 0:01:14]} 26. c5 {[%clk 0:00:24]}  Re5 {[%clk 0:01:13]} 27. Rc1 {[%clk 0:00:25]}  Kc7 {[%clk 0:01:13]} 28. Rc3 {[%clk 0:00:24]}  h5 {[%clk 0:01:09]} 29. h4 {[%clk 0:00:10]}  Re4 {[%clk 0:01:09]} 30. Nc4 {[%clk 0:00:09]}  Rxh4 {[%clk 0:01:08]} 31. Ne5 {[%clk 0:00:10]}  Rh3+ {[%clk 0:01:08]} 0-1


[Site "https://www.chess.com"]

[Event "Titled Tuesday Blitz March 14 Early 2023"]
[White "Urazayev, Arystanbek"]
[Black "Van Foreest, Jorden"]
[WhiteFideId "13709810"]
[BlackFideId "1039784"]
[WhiteElo "2479"]
[BlackElo "2633"]
[Result "1-0"]
[Round "03"]
[TimeControl "180+2"]
[Date "2023.03.14"]
[WhiteClock "0:00:24"]
[BlackClock "0:00:18"]

1. e4 {[%clk 0:03:00]}  e5 {[%clk 0:02:59]} 2. Nf3 {[%clk 0:03:01]}  Nc6 {[%clk 0:02:59]} 3. Bb5 {[%clk 0:03:01]}  a6 {[%clk 0:02:59]} 4. Ba4 {[%clk 0:03:01]}  g6 {[%clk 0:02:59]} 5. d4 {[%clk 0:03:00]}  exd4 {[%clk 0:02:59]} 6. c3 {[%clk 0:03:01]}  d3 {[%clk 0:02:54]} 7. O-O {[%clk 0:02:58]}  Bg7 {[%clk 0:02:55]} 8. c4 {[%clk 0:02:57]}  d6 {[%clk 0:02:54]} 9. Nc3 {[%clk 0:02:57]}  Nf6 {[%clk 0:02:45]} 10. Qxd3 {[%clk 0:02:56]}  O-O {[%clk 0:02:45]} 11. h3 {[%clk 0:02:56]}  Nd7 {[%clk 0:02:45]} 12. Bg5 {[%clk 0:02:53]}  f6 {[%clk 0:02:37]} 13. Be3 {[%clk 0:02:49]}  Nde5 {[%clk 0:02:35]} 14. Nxe5 {[%clk 0:02:31]}  fxe5 {[%clk 0:02:30]} 15. Qd5+ {[%clk 0:02:27]}  Kh8 {[%clk 0:02:30]} 16. Bxc6 {[%clk 0:02:28]}  bxc6 {[%clk 0:02:31]} 17. Qxc6 {[%clk 0:02:29]}  Rb8 {[%clk 0:02:31]} 18. b3 {[%clk 0:02:21]}  Bb7 {[%clk 0:02:31]} 19. Qa4 {[%clk 0:02:21]}  Qh4 {[%clk 0:02:17]} 20. c5 {[%clk 0:02:17]}  dxc5 {[%clk 0:02:09]} 21. Bxc5 {[%clk 0:02:10]}  Rf4 {[%clk 0:02:09]} 22. Qd7 {[%clk 0:02:04]}  Rc8 {[%clk 0:01:36]} 23. g3 {[%clk 0:01:56]}  Qg5 {[%clk 0:01:36]} 24. Be7 {[%clk 0:01:45]}  Bf6 {[%clk 0:01:35]} 25. h4 {[%clk 0:01:36]}  Qh5 {[%clk 0:00:53]} 26. Rad1 {[%clk 0:01:05]}  Rf3 {[%clk 0:00:49]} 27. Bxf6+ {[%clk 0:01:05]}  Rxf6 {[%clk 0:00:48]} 28. Qe7 {[%clk 0:01:04]}  Rcf8 {[%clk 0:00:39]} 29. Rd8 {[%clk 0:01:02]}  Qf3 {[%clk 0:00:30]} 30. Rxf8+ {[%clk 0:01:02]}  Rxf8 {[%clk 0:00:30]} 31. Qxe5+ {[%clk 0:01:03]}  Kg8 {[%clk 0:00:30]} 32. Nd5 {[%clk 0:01:03]}  Bxd5 {[%clk 0:00:29]} 33. Qxd5+ {[%clk 0:01:03]}  Rf7 {[%clk 0:00:30]} 34. Qd8+ {[%clk 0:00:58]}  Kg7 {[%clk 0:00:30]} 35. Qd4+ {[%clk 0:00:59]}  Kg8 {[%clk 0:00:27]} 36. Rd1 {[%clk 0:00:54]}  h6 {[%clk 0:00:27]} 37. Rd3 {[%clk 0:00:52]}  Qe2 {[%clk 0:00:25]} 38. Rd2 {[%clk 0:00:44]}  Qf3 {[%clk 0:00:24]} 39. Qd3 {[%clk 0:00:42]}  Qf6 {[%clk 0:00:23]} 40. Kg2 {[%clk 0:00:41]}  Kh7 {[%clk 0:00:23]} 41. Qe3 {[%clk 0:00:41]}  Qe6 {[%clk 0:00:23]} 42. Rc2 {[%clk 0:00:34]}  Re7 {[%clk 0:00:23]} 43. Rc4 {[%clk 0:00:34]}  Rf7 {[%clk 0:00:21]} 44. Qc3 {[%clk 0:00:33]}  Qd6 {[%clk 0:00:21]} 45. Rc6 {[%clk 0:00:32]}  Qe7 {[%clk 0:00:21]} 46. Qd4 {[%clk 0:00:27]}  h5 {[%clk 0:00:21]} 47. e5 {[%clk 0:00:27]}  Qe8 {[%clk 0:00:20]} 48. Qe4 {[%clk 0:00:27]}  Rf5 {[%clk 0:00:18]} 49. f4 {[%clk 0:00:26]}  Qd7 {[%clk 0:00:18]} 50. Qc2 {[%clk 0:00:25]}  Qd5+ {[%clk 0:00:18]} 51. Kh2 {[%clk 0:00:25]}  Rf7 {[%clk 0:00:18]} 52. Qxg6+ {[%clk 0:00:24]}  Kh8 {[%clk 0:00:18]} 53. Qh6+ {[%clk 0:00:24]}  Kg8 {[%clk 0:00:18]} 54. Rg6+ {[%clk 0:00:24]} 1-0


[Site "https://www.chess.com"]

[Event "Titled Tuesday Blitz March 14 Early 2023"]
[White "Martinez Alcantara, Jose Eduardo"]
[Black "Postny, Evgeny"]
[WhiteFideId "3805662"]
[BlackFideId "2804344"]
[WhiteElo "2712"]
[BlackElo "2509"]
[Result "1-0"]
[Round "03"]
[TimeControl "180+2"]
[Date "2023.03.14"]
[WhiteClock "0:00:24"]
[BlackClock "0:00:01"]

1. e4 {[%clk 0:02:58]}  c6 {[%clk 0:02:54]} 2. d4 {[%clk 0:02:56]}  d5 {[%clk 0:02:55]} 3. e5 {[%clk 0:02:50]}  Bf5 {[%clk 0:02:54]} 4. h4 {[%clk 0:02:48]}  Qc8 {[%clk 0:02:47]} 5. Nc3 {[%clk 0:02:45]}  h6 {[%clk 0:02:46]} 6. Bd3 {[%clk 0:02:37]}  Bxd3 {[%clk 0:02:41]} 7. Qxd3 {[%clk 0:02:37]}  e6 {[%clk 0:02:42]} 8. Nce2 {[%clk 0:02:29]}  c5 {[%clk 0:02:41]} 9. c3 {[%clk 0:02:29]}  Nc6 {[%clk 0:02:37]} 10. a3 {[%clk 0:02:25]}  Nge7 {[%clk 0:02:31]} 11. Nf3 {[%clk 0:02:12]}  b6 {[%clk 0:02:23]} 12. O-O {[%clk 0:02:08]}  a5 {[%clk 0:02:23]} 13. Ng3 {[%clk 0:02:05]}  Qa6 {[%clk 0:02:22]} 14. Qd1 {[%clk 0:02:05]}  a4 {[%clk 0:02:11]} 15. Be3 {[%clk 0:01:55]}  Qb5 {[%clk 0:02:10]} 16. Rb1 {[%clk 0:01:56]}  Na5 {[%clk 0:02:09]} 17. Nd2 {[%clk 0:01:54]}  Nc4 {[%clk 0:02:02]} 18. Nxc4 {[%clk 0:01:53]}  Qxc4 {[%clk 0:02:03]} 19. Qf3 {[%clk 0:01:41]}  Nc6 {[%clk 0:01:38]} 20. Rfd1 {[%clk 0:01:39]}  Be7 {[%clk 0:01:33]} 21. Nh5 {[%clk 0:01:35]}  Rg8 {[%clk 0:01:31]} 22. g3 {[%clk 0:01:27]}  Ra7 {[%clk 0:01:13]} 23. Nf4 {[%clk 0:01:20]}  g6 {[%clk 0:01:06]} 24. Ng2 {[%clk 0:01:19]}  h5 {[%clk 0:01:03]} 25. Rd2 {[%clk 0:01:08]}  Bd8 {[%clk 0:00:54]} 26. Rbd1 {[%clk 0:01:04]}  Ne7 {[%clk 0:00:49]} 27. Bf4 {[%clk 0:00:58]}  Nf5 {[%clk 0:00:48]} 28. Ne3 {[%clk 0:00:59]}  Nxe3 {[%clk 0:00:43]} 29. fxe3 {[%clk 0:00:57]}  Rd7 {[%clk 0:00:28]} 30. Kh2 {[%clk 0:00:54]}  Qb5 {[%clk 0:00:19]} 31. e4 {[%clk 0:00:50]}  dxe4 {[%clk 0:00:15]} 32. Qxe4 {[%clk 0:00:51]}  cxd4 {[%clk 0:00:10]} 33. Rxd4 {[%clk 0:00:52]}  Rxd4 {[%clk 0:00:06]} 34. Rxd4 {[%clk 0:00:46]}  Bc7 {[%clk 0:00:01]} 35. c4 {[%clk 0:00:26]}  Qxb2+ {[%clk 0:00:01]} 36. Rd2 {[%clk 0:00:27]}  Qb3 {[%clk 0:00:01]} 37. Qa8+ {[%clk 0:00:25]}  Ke7 {[%clk 0:00:01]} 38. Bg5+ {[%clk 0:00:24]}  f6 {[%clk 0:00:01]} 39. Bxf6+ {[%clk 0:00:24]} 1-0


[Site "https://www.chess.com"]

[Event "Titled Tuesday Blitz March 14 Early 2023"]
[White "Rustemov, Alexander"]
[Black "Tan, Zhongyi"]
[WhiteFideId "4119002"]
[BlackFideId "8603642"]
[WhiteElo "2917"]
[BlackElo "2519"]
[Result "1-0"]
[Round "03"]
[TimeControl "180+2"]
[Date "2023.03.14"]
[WhiteClock "0:00:49"]
[BlackClock "0:00:10"]

1. d4 {[%clk 0:03:00]}  d5 {[%clk 0:02:58]} 2. c4 {[%clk 0:03:01]}  e6 {[%clk 0:02:58]} 3. Nc3 {[%clk 0:03:02]}  Nf6 {[%clk 0:02:58]} 4. cxd5 {[%clk 0:03:02]}  exd5 {[%clk 0:02:59]} 5. Bg5 {[%clk 0:03:02]}  c6 {[%clk 0:02:57]} 6. e3 {[%clk 0:03:03]}  Bf5 {[%clk 0:02:57]} 7. Qf3 {[%clk 0:03:02]}  Bg6 {[%clk 0:02:57]} 8. Bxf6 {[%clk 0:03:03]}  Qxf6 {[%clk 0:02:58]} 9. Qxf6 {[%clk 0:03:03]}  gxf6 {[%clk 0:02:59]} 10. h4 {[%clk 0:03:04]}  h5 {[%clk 0:02:58]} 11. Nh3 {[%clk 0:03:03]}  Nd7 {[%clk 0:02:57]} 12. Nf4 {[%clk 0:03:03]}  Bd6 {[%clk 0:02:57]} 13. g3 {[%clk 0:03:03]}  a5 {[%clk 0:02:57]} 14. Rc1 {[%clk 0:03:02]}  a4 {[%clk 0:02:56]} 15. a3 {[%clk 0:03:01]}  Nb6 {[%clk 0:02:31]} 16. f3 {[%clk 0:03:01]}  Nc4 {[%clk 0:02:20]} 17. Bxc4 {[%clk 0:02:57]}  dxc4 {[%clk 0:02:19]} 18. Nxg6 {[%clk 0:02:40]}  Bxg3+ {[%clk 0:02:07]} 19. Ke2 {[%clk 0:02:40]}  fxg6 {[%clk 0:02:08]} 20. Ne4 {[%clk 0:02:12]}  Bc7 {[%clk 0:02:07]} 21. Nxf6+ {[%clk 0:01:53]}  Ke7 {[%clk 0:02:00]} 22. Ne4 {[%clk 0:01:53]}  b5 {[%clk 0:02:00]} 23. Rcg1 {[%clk 0:01:54]}  Rhg8 {[%clk 0:01:59]} 24. Rg5 {[%clk 0:01:54]}  Rab8 {[%clk 0:01:31]} 25. Rc5 {[%clk 0:01:45]}  Rb6 {[%clk 0:01:24]} 26. f4 {[%clk 0:01:42]}  Bd6 {[%clk 0:01:22]} 27. Nxd6 {[%clk 0:01:38]}  Kxd6 {[%clk 0:01:23]} 28. Rg1 {[%clk 0:01:39]}  Ke7 {[%clk 0:00:55]} 29. Kf3 {[%clk 0:01:35]}  Kf7 {[%clk 0:00:51]} 30. e4 {[%clk 0:01:25]}  Rd8 {[%clk 0:00:48]} 31. Ke3 {[%clk 0:01:23]}  b4 {[%clk 0:00:44]} 32. e5 {[%clk 0:01:09]}  bxa3 {[%clk 0:00:34]} 33. bxa3 {[%clk 0:01:09]}  Rb3+ {[%clk 0:00:32]} 34. Ke4 {[%clk 0:01:09]}  Rxa3 {[%clk 0:00:19]} 35. Rxc6 {[%clk 0:01:03]}  Ra2 {[%clk 0:00:17]} 36. Rc7+ {[%clk 0:01:03]}  Kf8 {[%clk 0:00:15]} 37. Rxg6 {[%clk 0:00:56]}  Re2+ {[%clk 0:00:14]} 38. Kf5 {[%clk 0:00:56]}  Rxd4 {[%clk 0:00:12]} 39. Ra6 {[%clk 0:00:54]}  Red2 {[%clk 0:00:10]} 40. Rxa4 {[%clk 0:00:49]} 1-0


[Site "https://www.chess.com"]

[Event "Titled Tuesday Blitz March 14 Early 2023"]
[White "Shuvalov, Evgenij"]
[Black "Ider, Borya"]
[WhiteFideId "4187237"]
[BlackFideId "4901134"]
[WhiteElo "2080"]
[BlackElo "2512"]
[Result "0-1"]
[Round "03"]
[TimeControl "180+2"]
[Date "2023.03.14"]
[WhiteClock "0:00:06"]
[BlackClock "0:00:22"]

1. d4 {[%clk 0:02:54]}  e6 {[%clk 0:03:00]} 2. c4 {[%clk 0:02:53]}  d5 {[%clk 0:03:01]} 3. Nc3 {[%clk 0:02:53]}  c6 {[%clk 0:03:00]} 4. cxd5 {[%clk 0:02:51]}  exd5 {[%clk 0:03:00]} 5. Nf3 {[%clk 0:02:51]}  Bf5 {[%clk 0:02:59]} 6. Bg5 {[%clk 0:02:48]}  Be7 {[%clk 0:02:59]} 7. Bxe7 {[%clk 0:02:47]}  Qxe7 {[%clk 0:03:00]} 8. e3 {[%clk 0:02:46]}  Nf6 {[%clk 0:03:00]} 9. Bd3 {[%clk 0:02:46]}  Ne4 {[%clk 0:02:55]} 10. Bxe4 {[%clk 0:02:43]}  dxe4 {[%clk 0:02:51]} 11. Nd2 {[%clk 0:02:43]}  Nd7 {[%clk 0:02:51]} 12. O-O {[%clk 0:02:41]}  O-O {[%clk 0:02:51]} 13. Qb3 {[%clk 0:02:38]}  b6 {[%clk 0:02:41]} 14. Rac1 {[%clk 0:02:37]}  Kh8 {[%clk 0:02:40]} 15. Ne2 {[%clk 0:02:32]}  Be6 {[%clk 0:02:29]} 16. Qa4 {[%clk 0:02:21]}  Bd5 {[%clk 0:02:26]} 17. Nf4 {[%clk 0:02:15]}  Nf6 {[%clk 0:02:20]} 18. Nb1 {[%clk 0:02:13]}  b5 {[%clk 0:01:59]} 19. Qa6 {[%clk 0:02:11]}  Bc4 {[%clk 0:01:57]} 20. Rfe1 {[%clk 0:02:04]}  g5 {[%clk 0:01:41]} 21. b3 {[%clk 0:02:02]}  gxf4 {[%clk 0:01:40]} 22. bxc4 {[%clk 0:02:01]}  f3 {[%clk 0:01:36]} 23. gxf3 {[%clk 0:01:41]}  exf3 {[%clk 0:01:33]} 24. Nd2 {[%clk 0:01:23]}  Rg8+ {[%clk 0:01:23]} 25. Kf1 {[%clk 0:01:13]}  Ne4 {[%clk 0:00:43]} 26. Nxf3 {[%clk 0:00:49]}  Qf6 {[%clk 0:00:43]} 27. Ke2 {[%clk 0:00:49]}  b4 {[%clk 0:00:38]} 28. c5 {[%clk 0:00:33]}  Rg2 {[%clk 0:00:36]} 29. Rf1 {[%clk 0:00:33]}  Re8 {[%clk 0:00:28]} 30. Qd3 {[%clk 0:00:27]}  Qe6 {[%clk 0:00:24]} 31. Ne5 {[%clk 0:00:18]}  Qxa2+ {[%clk 0:00:24]} 32. Kf3 {[%clk 0:00:15]}  Rxf2+ {[%clk 0:00:22]} 33. Rxf2 {[%clk 0:00:11]}  Qxf2+ {[%clk 0:00:21]} 34. Kg4 {[%clk 0:00:07]}  Rg8+ {[%clk 0:00:21]} 35. Kh3 {[%clk 0:00:07]}  Qg2+ {[%clk 0:00:21]} 36. Kh4 {[%clk 0:00:06]}  Qxh2# {[%clk 0:00:22]} 0-1


[Site "https://www.chess.com"]

[Event "Titled Tuesday Blitz March 14 Early 2023"]
[White "Kalashian, David"]
[Black "Ozen, Bahadir"]
[WhiteFideId "13302418"]
[BlackFideId "6337058"]
[WhiteElo "2490"]
[BlackElo "2503"]
[Result "1/2-1/2"]
[Round "03"]
[TimeControl "180+2"]
[Date "2023.03.14"]
[WhiteClock "0:01:37"]
[BlackClock "0:01:10"]

1. e4 {[%clk 0:03:00]}  e5 {[%clk 0:02:59]} 2. Nf3 {[%clk 0:02:59]}  Nc6 {[%clk 0:03:00]} 3. d4 {[%clk 0:02:58]}  exd4 {[%clk 0:03:00]} 4. Nxd4 {[%clk 0:02:59]}  Nf6 {[%clk 0:03:00]} 5. Nc3 {[%clk 0:02:59]}  Bb4 {[%clk 0:03:00]} 6. Nxc6 {[%clk 0:02:57]}  bxc6 {[%clk 0:03:01]} 7. Bd3 {[%clk 0:02:58]}  d5 {[%clk 0:03:01]} 8. exd5 {[%clk 0:02:59]}  cxd5 {[%clk 0:03:01]} 9. O-O {[%clk 0:02:59]}  O-O {[%clk 0:03:02]} 10. Bg5 {[%clk 0:02:59]}  c6 {[%clk 0:03:01]} 11. Qf3 {[%clk 0:02:59]}  h6 {[%clk 0:02:58]} 12. Bxf6 {[%clk 0:02:57]}  Qxf6 {[%clk 0:02:59]} 13. Qxf6 {[%clk 0:02:58]}  gxf6 {[%clk 0:03:00]} 14. Ne2 {[%clk 0:02:58]}  Bd7 {[%clk 0:02:20]} 15. c3 {[%clk 0:02:55]}  Bd6 {[%clk 0:02:19]} 16. Nd4 {[%clk 0:02:53]}  c5 {[%clk 0:02:05]} 17. Nf5 {[%clk 0:02:48]}  Bxf5 {[%clk 0:02:05]} 18. Bxf5 {[%clk 0:02:49]}  Rab8 {[%clk 0:01:58]} 19. b3 {[%clk 0:02:46]}  Be5 {[%clk 0:01:58]} 20. Rac1 {[%clk 0:02:34]}  a5 {[%clk 0:01:52]} 21. Rfd1 {[%clk 0:02:34]}  Rfd8 {[%clk 0:01:51]} 22. g3 {[%clk 0:02:27]}  c4 {[%clk 0:01:49]} 23. f4 {[%clk 0:02:12]}  Bc7 {[%clk 0:01:48]} 24. bxc4 {[%clk 0:02:12]}  dxc4 {[%clk 0:01:49]} 25. Rxd8+ {[%clk 0:02:12]}  Rxd8 {[%clk 0:01:50]} 26. Rc2 {[%clk 0:02:12]}  Bb6+ {[%clk 0:01:49]} 27. Kg2 {[%clk 0:02:12]}  a4 {[%clk 0:01:39]} 28. Bg4 {[%clk 0:02:02]}  Ba5 {[%clk 0:01:30]} 29. Be2 {[%clk 0:01:55]}  a3 {[%clk 0:01:13]} 30. Kf3 {[%clk 0:01:45]}  f5 {[%clk 0:01:10]} 31. Bxc4 {[%clk 0:01:44]}  Rc8 {[%clk 0:01:10]} 32. Bd3 {[%clk 0:01:42]}  Rxc3 {[%clk 0:01:11]} 33. Rxc3 {[%clk 0:01:42]}  Bxc3 {[%clk 0:01:12]} 34. Bxf5 {[%clk 0:01:42]}  Kg7 {[%clk 0:01:12]} 35. Bc2 {[%clk 0:01:40]}  f6 {[%clk 0:01:12]} 36. g4 {[%clk 0:01:40]}  Bb2 {[%clk 0:01:11]} 37. h3 {[%clk 0:01:40]}  Bc3 {[%clk 0:01:12]} 38. Ke4 {[%clk 0:01:41]}  Bd2 {[%clk 0:01:12]} 39. f5 {[%clk 0:01:37]}  Bb4 {[%clk 0:01:10]} 1/2-1/2


[Site "https://www.chess.com"]